Cogmind - Beta 14 @@@ ROGUE MODE // 2024.09.08 @ 13:09:31 Player: Jezoensis Result: Destroyed by G-34 Mercenary with Small Laser Performance ------------- Evolutions (0) 0 Regions Visited (4) 800 Robots Destroyed (17) 85 Value Destroyed (449) 449 Prototype IDs (25) 500 Alien Tech Used (0) 0 Bonus (300) 300 TOTAL SCORE: 2134 Bonus ------- Aligned with FarCom 300 Cogmind --------- Core Integrity 0/250 Matter 280/300 Energy 248/250 System Corruption 0% Temperature Cool (6) Movement Rolling (105) Ox1 Location -9/Mines Parts ------- > --- POWER (1) -------- Ion Engine > --- PROPULSION (2) --- Wheel Compact Wheel > --- UTILITY (2) ------ Large Storage Unit > --- WEAPON (2) ------- AWS/Gauss > --- INVENTORY (15) --- Light Deuterium Engine Huge Storage Unit High-capacity Matter Pod (200) High-capacity Matter Pod (200) Improved Terrain Scanner Seismic Detector Assault Rifle Assault Rifle Assault Rifle Light Assault Rifle Mini Grenade Launcher Mini Grenade Launcher Mining Laser Peak State ------------ > --- POWER ------------ Ion Engine > --- PROPULSION ------- Wheel Compact Wheel > --- UTILITY ---------- Large Storage Unit > --- WEAPON ----------- AWS/Gauss > --- INVENTORY -------- Light Deuterium Engine Huge Storage Unit High-capacity Matter Pod High-capacity Matter Pod Improved Terrain Scanner Seismic Detector Assault Rifle Assault Rifle Assault Rifle Light Assault Rifle Mini Grenade Launcher Mini Grenade Launcher Mining Laser [Rating: 21] Favorites ----------- Power Ion Engine Engine Ion Engine Propulsion Wheel Treads Light Treads Wheel Wheel Utility Large Storage Unit Device Improved Terrain Scanner Storage Large Storage Unit Protection Power Shielding Weapon Assault Rifle Energy Gun Medium Laser Ballistic Gun Assault Rifle Launcher Grenade Launcher Special Weapon Mining Laser Build | -11 -10 -10 -10 -9 ------- Run | Yrd Mat Min Exi Min Slots Evolved . | . . . . . Power . | . . . . . Propulsion . | . . . . . Utility . | . . . . . Weapon . | . . . . . Parts Attached 32 | 8 10 12 . 2 Power 2 | 1 . 1 . . Engine 2 | 1 . 1 . . Core . | . . . . . Reactor . | . . . . . Propulsion 14 | 3 4 6 . 1 Treads 4 | . 2 2 . . Leg . | . . . . . Wheel 10 | 3 2 4 . 1 Hover . | . . . . . Flight . | . . . . . Utility 6 | 2 3 1 . . Device 3 | 1 1 1 . . Storage 2 | 1 1 . . . Processor . | . . . . . Hackware . | . . . . . Protection 1 | . 1 . . . Artifact . | . . . . . Weapon 10 | 2 3 4 . 1 Energy Gun 1 | . 1 . . . Energy Cannon . | . . . . . Ballistic Gun 7 | 2 1 3 . 1 Ballistic Cannon . | . . . . . Launcher 1 | . . 1 . . Special Weapon 1 | . 1 . . . Impact Weapon . | . . . . . Slashing Weapon . | . . . . . Piercing Weapon . | . . . . . Special Melee Weapon . | . . . . . Unidentified Prototypes . | . . . . . Parts Lost 9 | . 1 5 . 3 Power 1 | . . 1 . . Propulsion 4 | . 1 2 . 1 Utility 1 | . . . . 1 Weapon 3 | . . 2 . 1 Highest Loss Streak 4 | . 1 4 . 3 To Critical Strikes . | . . . . . Average Slot Usage (%) 98 | . 99 98 100 71 Engine 13 | . 14 12 14 14 Treads 2 | . 2 4 . . Wheel 25 | . 24 23 28 23 Device 12 | . 12 14 14 4 Storage 14 | . 14 14 14 14 Energy Gun 6 | . 11 . . . Ballistic Gun 19 | . 14 24 28 14 Peak Build Rating 21 | 9 10 10 10 21 Average Rating 9 | 5 9 8 9 12 On Entrance 7 | . 9 10 9 10 Naked Turns . | . . . . . Heaviest Build 35 | 14 30 31 30 35 Greatest Support 26 | 26 26 26 20 26 Greatest Overweight (x) 3 | . 1 3 1 2 Average Overweight (x) . | . . 1 1 1 Largest Inventory Capacity 15 | 8 15 15 15 15 Average Capacity 14 | 7 14 15 15 15 Most Carried 15 | 8 15 15 15 15 Average Carried 12 | 4 11 14 14 14 Final Capacity 15 | 8 15 15 15 15 Final Carried 15 | 8 15 14 15 13 Class Distribution -------------------- 100% | Mutant Dominant Class ---------------- Mutant | -10/Materials Mutant | -10/Mines Mutant | -10/Exiles Mutant | -9/Mines Resources | -11 -10 -10 -10 -9 ----------- Run | Yrd Mat Min Exi Min Matter Collected 785 | 290 172 276 47 . Remotely . | . . . . . Salvage Created 615 | 112 248 37 . 218 Parts 33 | 9 9 6 . 9 Haulers Intercepted . | . . . . . Recyclers Shooed 2 | 1 . 1 . . Parts Field Recycled . | . . . . . Retrieved Matter . | . . . . . Parts Self-Destructed . | . . . . . Prevented . | . . . . . Kills | -11 -10 -10 -10 -9 ------- Run | Yrd Mat Min Exi Min Combat Hostiles Destroyed 13 | . 5 3 . 5 Guns 13 | . 5 3 . 5 Classes Destroyed 5 | 2 1 1 . 1 Tunneler 3 | 3 . . . . Recycler 1 | 1 . . . . Swarmer 3 | . . 3 . . Grunt 9 | . 5 . . 4 Duelist 1 | . . . . 1 Best Kill Streak 5 | 3 5 3 . 5 Combat Bots Only 5 | . 5 3 . 5 Max Kills in Single Turn 2 | 2 1 1 . 2 Gunslinging . | . . . . . Exploded . | . . . . . Melee . | . . . . . Uniques/NPCs Destroyed . | . . . . . Combat | -11 -10 -10 -10 -9 -------- Run | Yrd Mat Min Exi Min Hostile Shots Fired 87 | . 48 27 . 12 Missed 19 | . 9 6 . 4 Damage Taken 1167 | . 526 537 . 104 Core 258 | . 113 112 . 33 Absorbed by Shields . | . . . . . Redirected to Shielding 5 | . 5 . . . Core Remaining (%) 100 | 100 . . . . Volleys Fired 51 | 8 31 11 . 1 Largest 2 | 2 2 2 . 2 Hottest 100 | 40 100 70 . 40 Shots Fired 102 | 16 56 21 . 9 Gun 95 | 16 50 20 . 9 Cannon . | . . . . . Launcher 1 | . . 1 . . Special 6 | . 6 . . . Kinetic 66 | 16 25 16 . 9 Thermal 35 | . 31 4 . . Explosive 1 | . . 1 . . Electromagnetic . | . . . . . Robot Hit Streak 8 | 3 8 5 . 5 Robot Miss Streak 3 | 2 3 3 . 2 Penetration Max . | . . . . . Secondary Targets 2 | . . 2 . . Max Gunslinging Chain 1 | . . 1 . . Autonomous 7 | . . . . 7 Shots Hit Robots 64 | 9 35 14 . 6 Core Hits 31 | 7 12 7 . 5 Critical Kills . | . . . . . Critical Parts Destroyed . | . . . . . Critical Strikes 1 | . 1 . . . Burn 1 | . 1 . . . Melee Attacks . | . . . . . Impact . | . . . . . Slashing . | . . . . . Piercing . | . . . . . Sneak Attacks . | . . . . . Combat Hostiles . | . . . . . Follow-up Attacks . | . . . . . Damage Inflicted 974 | 114 446 191 . 223 Guns 959 | 114 446 176 . 223 Cannons . | . . . . . Explosions 15 | . . 15 . . Melee . | . . . . . Ramming . | . . . . . Kinetic 693 | 114 220 136 . 223 Thermal 266 | . 226 40 . . Explosive 15 | . . 15 . . Electromagnetic . | . . . . . Impact . | . . . . . Slashing . | . . . . . Piercing . | . . . . . Highest Corruption . | . . . . . Average Corruption . | . . . . . Corruption Purged . | . . . . . Corruption Blocked . | . . . . . Overload Shots . | . . . . . Overflow Damage . | . . . . . Projectiles . | . . . . . Explosions . | . . . . . Melee . | . . . . . Knockbacks . | . . . . . Impact . | . . . . . Kinetic . | . . . . . Secondary . | . . . . . Self-Inflicted Damage . | . . . . . Shots . | . . . . . Rammed . | . . . . . Targets Rammed . | . . . . . Kicked . | . . . . . Crushed . | . . . . . Highest Temperature 259 | . 259 36 . 32 Average Temperature 118 | . 133 17 . 15 Received Heat Transfer 360 | . 285 . . 75 Siege Activations . | . . . . . Robots Corrupted . | . . . . . Combat Hostiles . | . . . . . Parts Fried . | . . . . . Impact Corruptions . | . . . . . Robots Melted . | . . . . . Combat Hostiles . | . . . . . Parts Melted 3 | . 2 1 . . Heat Transferred 851 | . 740 111 . . Parts Sabotaged . | . . . . . Parts Stolen . | . . . . . Parts Stripped . | . . . . . Power Chain Reactions . | . . . . . Alert | -11 -10 -10 -10 -9 ------- Run | Yrd Mat Min Exi Min Peak Influence 227 | 20 227 115 . 136 Initial 40 | . 13 40 . . Average 93 | 5 106 100 . 15 Maximum Alert Level 1 | . 1 . . . Low Security (%) 88 | 100 80 100 . 100 Level 1 11 | . 19 . . . Level 2 . | . . . . . Level 3 . | . . . . . Level 4 . | . . . . . Level 5 . | . . . . . High Security . | . . . . . Max Security . | . . . . . Squads Dispatched 2 | . 2 . . . Investigation 2 | . 2 . . . Extermination . | . . . . . Reinforcement . | . . . . . Assault . | . . . . . Garrison . | . . . . . Intercept . | . . . . . Searches Triggered . | . . . . . Construction Impeded . | . . . . . Haulers Reinforced . | . . . . . Active Scanning Responses . | . . . . . Cargo Convoy Interrupts . | . . . . . Stealth | -11 -10 -10 -10 -9 --------- Run | Yrd Mat Min Exi Min Distress Signals 2 | . 2 . . . Communications Jammed . | . . . . . Distress Signals . | . . . . . Times Spotted 28 | . 17 5 . 6 Peak Tracking Total 5 | . 5 3 . 3 Tactical Retreats 1 | . 1 . . . Traps | -11 -10 -10 -10 -9 ------- Run | Yrd Mat Min Exi Min Traps Triggered . | . . . . . Indirectly . | . . . . . Trap Hack Attempts . | . . . . . Triggered . | . . . . . Disarmed . | . . . . . Reprogrammed . | . . . . . Reused . | . . . . . Traps Extracted . | . . . . . Installed . | . . . . . Triggered . | . . . . . Machines | -11 -10 -10 -10 -9 ---------- Run | Yrd Mat Min Exi Min Machines Disabled . | . . . . . Max in Single Turn . | . . . . . Machines Repaired . | . . . . . Machines Dismantled . | . . . . . Machines Sabotaged . | . . . . . Overloaded Fab Kills . | . . . . . Hacking | -11 -10 -10 -10 -9 --------- Run | Yrd Mat Min Exi Min Machines Accessed 9 | . 8 . 1 . Terminals 6 | . 6 . . . Fabricators . | . . . . . Repair Stations . | . . . . . Recycling Units 2 | . 2 . . . Scanalyzers . | . . . . . Garrison Access . | . . . . . Total Hacks 27 | . 26 . 1 . Successful 15 | . 14 . 1 . Failed 11 | . 11 . . . Catastrophic . | . . . . . Database Lockouts 1 | . 1 . . . Manual 21 | . 20 . 1 . Terminals 22 | . 22 . . . Fabricators . | . . . . . Repair Stations . | . . . . . Recycling Units 4 | . 4 . . . Scanalyzers . | . . . . . Garrison Access . | . . . . . Terminal Hacks 8 | . 7 . 1 . Robot Analysis 3 | . 3 . . . Prototype ID Bank 1 | . 1 . . . Terminal Index 1 | . 1 . . . Locate Traps 2 | . 2 . . . Derelict Proto ID Bank 1 | . . . 1 . Fabricator Hacks . | . . . . . Repair Station Hacks . | . . . . . Recycling Unit Hacks 1 | . 1 . . . Retrieve Components 1 | . 1 . . . Scanalyzer . | . . . . . Garrison Access Hacks . | . . . . . Unauthorized Hacks 6 | . 6 . . . Terminals 4 | . 4 . . . Track 2 | . 2 . . . Botnet 2 | . 2 . . . Fabricators . | . . . . . Repair Stations . | . . . . . Recycling Units 2 | . 2 . . . Tunnel 2 | . 2 . . . Scanalyzers . | . . . . . Garrison Access . | . . . . . Data Cores Recovered . | . . . . . Used . | . . . . . Hacking Detections 7 | . 7 . . . Full Trace Events . | . . . . . Feedback Events . | . . . . . Feedback Blocked . | . . . . . Robot Schematics Acquired . | . . . . . Robots Built . | . . . . . Authchips . | . . . . . Time . | . . . . . Total Robot Build Rating . | . . . . . Part Schematics Acquired . | . . . . . Parts Built . | . . . . . Authchips . | . . . . . Time . | . . . . . Total Part Build Rating . | . . . . . Parts Repaired . | . . . . . Time . | . . . . . Parts Recycled . | . . . . . Recycled Matter . | . . . . . Retrieved Matter . | . . . . . Retrieved Components . | . . . . . Parts Scanalyzed . | . . . . . Part Schematics Acquired . | . . . . . Parts Damaged . | . . . . . Bothacking | -11 -10 -10 -10 -9 ------------ Run | Yrd Mat Min Exi Min Used RIF Installer . | . . . . . Robots Hacked . | . . . . . Non-combat . | . . . . . Combat . | . . . . . Robot Hacks Applied . | . . . . . Relay Couplers Released . | . . . . . Fabnet Peak Effective % . | . . . . . Robots Rewired . | . . . . . Allies Hacked . | . . . . . Hacks Repelled . | . . . . . Allies | -11 -10 -10 -10 -9 -------- Run | Yrd Mat Min Exi Min Total Allies . | . . . . . Largest Group . | . . . . . Highest-Rated Group . | . . . . . Highest-Rated Ally . | . . . . . Total Orders . | . . . . . Ally Attacks . | . . . . . Total Damage . | . . . . . Kills . | . . . . . Allies Corrupted . | . . . . . Allies Melted . | . . . . . Intel | -11 -10 -10 -10 -9 ------- Run | Yrd Mat Min Exi Min Robot Analysis Total 3 | . 3 . . . Derelict Logs Recovered . | . . . . . Drone Launches . | . . . . . Drone Recoveries . | . . . . . Exploration | -11 -10 -10 -10 -9 ------------- Run | Yrd Mat Min Exi Min Turns Passed 1093 | 72 518 230 246 27 Spaces Moved 883 | 39 395 172 256 21 Core 19 | 19 . . . . Treads . | . . . . . Legs . | . . . . . Wheels 864 | 20 395 172 256 21 Hover . | . . . . . Flight . | . . . . . Fastest Speed 50 | 50 80 95 95 95 Average Speed 97 | 65 99 102 95 101 Slowest Speed 125 | 90 105 125 95 110 Overloaded Moves . | . . . . . Propulsion Burnouts . | . . . . . Robots Hopped . | . . . . . Cave-ins Triggered . | . . . . . Exploration Rate (%) 38 | 3 65 50 69 6 Regions Visited 4 Branch Regions 3 Pre-discovered Areas 2 | . 2 . . . Known Exits Taken . | . . . . . Unknown Exits Taken 4 | 1 1 1 1 . Scrap Searched 1 | . . 1 . . Spaces Dug 3 | . 3 . . . Terrain Destroyed 12 | . 6 3 . 3 Melee . | . . . . . Projectile 9 | . 6 . . 3 AOE 3 | . . 3 . . Terrain Rammed . | . . . . . Walls Destroyed . | . . . . . Machines Disabled . | . . . . . Actions | -11 -10 -10 -10 -9 --------- Run | Yrd Mat Min Exi Min Total 1005 | 67 450 201 261 26 Wait 5 | 4 . . . 1 Move 879 | 38 394 171 255 21 Hop . | . . . . . Pick Up 28 | 9 11 5 3 . Fast Attach 5 | 5 . . . . Attach 10 | 2 1 5 . 2 Detach 1 | . . . . 1 Swap 17 | 1 9 7 . . Drop 9 | . 4 2 3 . Fire 51 | 8 31 11 . 1 Melee . | . . . . . Ram . | . . . . . Kick . | . . . . . Crush . | . . . . . Escape Stasis . | . . . . . Rewire . | . . . . . Trap . | . . . . . Miscellaneous . | . . . . . Route ------- -11/Scrapyard -10/Materials (discovered 2 exits: [*Mat] / [*Min]) -10/Mines -10/Exiles (discovered 2 exits: [*Min x2]) -9/Mines History --------- Turn | Location | Event 15 | -11/Scrapyard | Discovered new exit (range 15) 73 | -11/Scrapyard | Entered Materials 175 | -10/Materials | Discovered new exit (range 8) 318 | -10/Materials | Build established: Mutant 417 | -10/Materials | Discovered new exit (range 14) 471 | -10/Materials | Central database locked down 591 | -10/Materials | Entered Mines 594 | -10/Mines | Core integrity fell below 50% 691 | -10/Mines | Assembled infested the area 723 | -10/Mines | Met 8R-AWN 745 | -10/Mines | Core integrity fell below 20% 783 | -10/Mines | Lost 4 parts (1p2n1w) 817 | -10/Mines | Discovered new exit (range 5) 821 | -10/Mines | Entered Exiles 837 | -10/Exiles | Discovered new exit (range 15) 847 | -10/Exiles | Welcomed by 8R-AWN 860 | -10/Exiles | Met EX-HEX 889 | -10/Exiles | Met EX-BIN 899 | -10/Exiles | Aligned with FarCom system 900 | -10/Exiles | Given EX-Vault access code 922 | -10/Exiles | Opened EX-Vault 927 | -10/Exiles | Found AWS/Gauss 947 | -10/Exiles | Warned to stay clear of 0b10 Research branches 973 | -10/Exiles | Met EX-DEC 1060 | -10/Exiles | Discovered new exit (range 10) 1067 | -10/Exiles | Left Exiles lab with AWS/Gauss 1067 | -10/Exiles | Entered Mines 1068 | -9/Mines | Met a Derelict bent on vengeance 1094 | -9/Mines | Destroyed by G-34 Mercenary with Small Laser Last Messages --------------- 01042_ Dropped Lgt. Assault Rifle. 01043_ Acquired Hcp. Matter Pod. 01060_ EXIT=FOUND LOCATION=UNKNOWN GOAL=ESCAPE 01067_ Receiving FarCom transmissions... 01069_ Assault Rifle destroyed. 01069_ Critical hit (Burn: +37). 01071_ Sensor Array destroyed. 01077_ Wheel destroyed. 01085_ G-34 Mercenary destroyed. 01089_ Slug penetrates G-34 Mercenary. 01089_ Slug penetrates Wall. 01090_ Slug penetrates G-34 Mercenary. 01090_ G-34 Mercenary destroyed. 01090_ Slug penetrates Wall. 01092_ G-47 Trooper destroyed. 01093_ Slug penetrates L-31 Rogue. 01093_ L-31 Rogue destroyed. 01093_ G-34 Mercenary destroyed. Map ----- +----------------------------------------------------+ | | | | | | | | | | | | | | | | | ?????????????????????????????????????????????????? | | ?????????????????????????????????????????????????? | | ??????????????????????????????#########??????????? | | ??????????????????????????????# #??????????? | | ??????????????????????????????# #??????????? | | ????????????????????????####### """ #??????????? | | ????????????????????????#[! """ #??????????? | | ????????????????????????#%##### """ #??????????? | | ????????????????????????#*#???# #??????????? | | ????????????????????????#%#???# #??????????? | | ????????????????????????#[#???# #??????????? | | ????????????????????????#=*???###### ##??????????? | | ????????????????????????# #????????? #???????????? | | ????????????????????????# #??????????#???????????? | | ????????????????????????# #??????????????????????? | | ????????????????????????# #??????????????????????? | | ????????????????######### #??????????????????????? | | ????????? %g% @#??????????????????????? | | ???????????????# ##########??????????????????????? | | ?????????????????????????????????????????????????? | | ?????????????????????????????????????????????????? | | ?????????????????????????????????????????????????? | | ?????????????????????????????????????????????????? | | ?????????????????????????????????????????????????? | | ?????????????????????????????????????????????????? | | ?????????????????????????????????????????????????? | | ?????????????????????????????????????????????????? | | ?????????????????????????????????????????????????? | | ?????????????????????????????????????????????????? | | ?????????????????????????????????????????????????? | | ?????????????????????????????????????????????????? | | ?????????????????????????????????????????????????? | | ?????????????????????????????????????????????????? | | ?????????????????????????????????????????????????? | | ?????????????????????????????????????????????????? | | ?????????????????????????????????????????????????? | | ?????????????????????????????????????????????????? | | ?????????????????????????????????????????????????? | | ?????????????????????????????????????????????????? | | ?????????????????????????????????????????????????? | | ?????????????????????????????????????????????????? | | ?????????????????????????????????????????????????? | +----------------------------------------------------+ Best States ------------- Heat Dissipation 25 Energy Generation 10 Energy Capacity 250 Matter Stores 300 Matter Capacity 300 Sight Range 16 Robot Scan Range 14 Terrain Scan Range 16 Terrain Scan Density 10 Power Shielding 33 Evasion (%) 50 Recoil Reduction 2 Item Schematics ----------------- None Robot Schematics ------------------ None Fabricated ------------ Nothing Alien Tech Used ----------------- None Achievements -------------- None Challenges ------------ None Game ------ Seed GuidanceRemoteTriangulator Manual? 0 Play Time 00:13:30 Cumulative 1099.6 hours Start 2024.09.08 @ 12:56:22 End 2024.09.08 @ 13:09:31 Sessions 1 Manual Loads 0 Difficulty Rogue Special Mode None Game No. 560 Rogue 433 Adventurer 125 Explorer 2 Win Type - Total 131 Types 101/10/9/3/3/0/0/3/2 Lore% 63 Gallery% 84 Achievement% 84 Wizard Run 0 Options --------- Layout 0 ASCII 0 Keyboard 1 Movement Numpad Keybinds 0 Fullscreen 1 Font 36/Terminus++ Map View 76x50 Zoom Use 0% Tactical HUD 1 Map Filters NONE Filters NONE Steam 1 RUN: 836ae1bb-10f8-4aa6-81a2-f74deed93405